fUSD/lending_fUSD_20250123
["ID","MTS","AMOUNT","RATE_DAILY","PERIOD"]
[350069571,1737598266411,-500.0,0.00021095,2]
[350069572,1737598266420,-500.0,0.00021095,2]
[350069573,1737598266430,-508.75,0.00021095,2]
[350069574,1737598266439,-697.25,0.00021095,2]
[350069575,1737598266448,-1204.01,0.00021095,2]
[350069576,1737598266458,-1170.11,0.00021095,2]
[350069577,1737598266467,-2156.54,0.00021095,2]
[350069578,1737598266477,-954.95,0.00021095,2]
[350069579,1737598266487,-500.0,0.00021095,2]
[350069580,1737598266496,-2857.56,0.00021095,2]
[350069581,1737598266505,-527.03478593,0.00021095,2]
[350069582,1737598266517,-1781.26,0.00021095,2]
[350069583,1737598266527,-613.33,0.00021095,2]
[350069584,1737598266537,-500.0,0.00021095,2]
[350069585,1737598266546,-832.7,0.00021095,2]
[350069586,1737598266556,-1000.0,0.00021095,2]
[350069587,1737598266569,-709.55,0.00021095,2]
[350069588,1737598266579,-534.8,0.00021095,2]
[350069589,1737598266588,-902.21,0.00021095,2]
[350069590,1737598266598,-1002.47,0.00021095,2]
[350069591,1737598266607,-857.13,0.00021095,2]
[350069592,1737598266616,-500.0,0.00021095,2]
[350069593,1737598266625,-825.39,0.00021095,2]
[350069594,1737598266634,-1658.23,0.00021095,2]
[350069595,1737598266644,-1634.67,0.00021095,2]
[350069596,1737598266654,-553.31,0.00021095,2]
[350069597,1737598266663,-1490.03,0.00021095,2]
[350069598,1737598266672,-2233.11,0.00021095,2]
[350069599,1737598266682,-1027.05,0.00021095,2]
[350069600,1737598266692,-770.23,0.00021095,2]
[350069601,1737598266701,-520.02,0.00021095,2]
[350069602,1737598266711,-500.0,0.00021095,2]
[350069603,1737598266720,-1698.92,0.00021095,2]
[350069604,1737598266730,-683.74,0.00021095,2]
[350069605,1737598266740,-1618.77,0.00021095,2]
[350069606,1737598266750,-1198.6,0.00021095,2]
[350069607,1737598266762,-500.0,0.00021095,2]
[350069608,1737598266772,-661.89,0.00021095,2]
[350069609,1737598266781,-500.0,0.00021095,2]
[350069610,1737598266790,-2270.26,0.00021095,2]
[350069611,1737598266799,-638.8,0.00021095,2]
[350069612,1737598266809,-500.0,0.00021095,2]
[350069613,1737598266818,-500.0,0.00021095,2]
[350069614,1737598266827,-500.0,0.00021095,2]
[350069615,1737598266836,-601.96,0.00021095,2]
[350069616,1737598266845,-500.0,0.00021095,2]
[350069617,1737598266854,-500.0,0.00021095,2]
[350069618,1737598266863,-500.0,0.00021095,2]
[350069619,1737598266872,-905.62,0.00021095,2]
[350069620,1737598266881,-1043.82,0.00021095,2]
[350069621,1737598266891,-500.0,0.00021095,2]
[350069622,1737598266899,-500.0,0.00021095,2]
[350069623,1737598266909,-624.19,0.00021095,2]
[350069624,1737598266919,-500.0,0.00021095,2]
[350069625,1737598266929,-795.77,0.00021095,2]
[350069626,1737598266938,-500.0,0.00021095,2]
[350069627,1737598266947,-161.542149,0.00021095,2]
[350069628,1737598266955,-500.0,0.00021095,2]
[350069629,1737598266964,-500.0,0.00021095,2]
[350069630,1737598266973,-652.67,0.00021095,2]
[350069631,1737598266983,-1966.42,0.00021095,2]
[350069632,1737598266991,-1474.72,0.00021095,2]
[350069633,1737598267002,-500.0,0.00021095,2]
[350069634,1737598267013,-839.45,0.00021095,2]
[350069635,1737598267022,-1114.82,0.00021095,2]
[350069636,1737598267031,-695.67,0.00021095,2]
[350069637,1737598267041,-780.12,0.00021095,2]
[350069638,1737598267053,-1160.06,0.00021095,2]
[350069639,1737598267063,-500.0,0.00021095,2]
[350069640,1737598267072,-500.0,0.00021095,2]
[350069641,1737598267082,-1941.87,0.00021095,2]
[350069642,1737598267091,-500.0,0.00021095,2]
[350069643,1737598267099,-629.0,0.00021095,2]
[350069644,1737598267108,-340.00785583,0.00021114,2]
[350069645,1737598267117,-1951.20416786,0.00021176,2]
[350069646,1737598267127,-421.29786233,0.00021181,2]
[350069647,1737598267136,-3000.0,0.000212,7]
[350069648,1737598267146,-7591.17966391,0.000212,2]
[350069649,1737598267155,-1123.26,0.00021206,2]
[350069650,1737598267164,-1000.0,0.00021227,2]
[350069651,1737598267173,-4001.85684245,0.00021273,2]
[350069652,1737598267183,-1951.20416786,0.00021279,2]
[350069653,1737598267192,-3800.0,0.000213,7]
[350069654,1737598267201,-340.00785583,0.00021311,2]
[350069655,1737598267210,-1803.0,0.0002134,2]
[350069656,1737598267219,-464.187533,0.00021369,2]
[350069657,1737598267228,-500.0,0.00021369,2]
[350069658,1737598267237,-500.0,0.00021369,2]
[350069659,1737598267246,-500.0,0.00021369,2]
[350069660,1737598267255,-532.52,0.00021369,2]
[350069661,1737598267265,-500.0,0.00021369,2]
[350069662,1737598267275,-500.0,0.00021369,2]
[350069663,1737598267284,-1208.62,0.00021369,2]
[350069664,1737598267293,-500.0,0.00021369,2]
[350069665,1737598267301,-500.0,0.00021369,2]
[350069666,1737598267310,-500.0,0.00021369,2]
[350069667,1737598267320,-500.0,0.00021369,2]
[350069668,1737598267328,-500.0,0.00021369,2]
[350069669,1737598267337,-500.0,0.00021369,2]
[350069670,1737598267346,-500.0,0.00021369,2]
[350069671,1737598267355,-500.0,0.00021369,2]
[350069672,1737598267364,-591.65,0.00021369,2]
[350069673,1737598267373,-598.59,0.00021369,2]
[350069674,1737598267382,-500.0,0.00021369,2]
[350069675,1737598267391,-511.06,0.00021369,2]
[350069676,1737598267400,-512.53730289,0.00021369,2]
[350069677,1737598267410,-626.68,0.00021369,2]
[350069678,1737598267424,-569.54,0.00021369,2]
[350069679,1737598267445,-500.0,0.00021369,2]
[350069680,1737598267457,-500.0,0.00021369,2]
[350069681,1737598267467,-500.0,0.00021369,2]
[350069682,1737598267476,-669.91,0.00021369,2]
[350069683,1737598267485,-590.81,0.00021369,2]
[350069684,1737598267495,-500.0,0.00021369,2]
[350069685,1737598267504,-539.23,0.00021369,2]
[350069686,1737598267514,-500.0,0.00021369,2]
[350069687,1737598267525,-609.49,0.00021369,2]
[350069688,1737598267535,-652.2,0.00021369,2]
[350069689,1737598267543,-297.29381965,0.00021369,2]
[350069690,1737598267552,-500.0,0.00021369,2]
[350069691,1737598267563,-500.0,0.00021369,2]
[350069692,1737598267573,-500.0,0.00021369,2]
[350069693,1737598267582,-500.0,0.00021369,2]
[350069694,1737598267591,-560.55,0.00021369,2]
[350069695,1737598267600,-500.0,0.00021369,2]
[350069696,1737598267609,-500.0,0.00021369,2]
[350069697,1737598267618,-500.0,0.00021369,2]
[350069698,1737598267627,-500.0,0.00021369,2]
[350069699,1737598267637,-585.91,0.00021369,2]
[350069700,1737598267645,-500.0,0.00021369,2]
[350069701,1737598267654,-500.0,0.00021369,2]
[350069702,1737598267663,-500.0,0.00021369,2]
[350069703,1737598267672,-510.08002433,0.00021369,2]
[350069704,1737598267681,-760.92,0.00021369,2]
[350069705,1737598267690,-500.0,0.00021369,2]
[350069706,1737598267700,-500.0,0.00021369,2]
[350069707,1737598267709,-709.5,0.00021369,2]
[350069708,1737598267718,-500.0,0.00021369,2]
[350069709,1737598267729,-783.44,0.00021369,2]
[350069710,1737598267738,-225.69317645,0.00021369,2]
[350069711,1737598267747,-734.61,0.00021369,2]
[350069712,1737598267757,-983.91,0.00021369,2]
[350069713,1737598267768,-1021.08,0.00021369,2]
[350069714,1737598267777,-595.13,0.00021369,2]
[350069715,1737598267786,-1861.17,0.00021369,2]
[350069716,1737598267796,-2273.74,0.00021369,2]
[350069717,1737598267805,-500.0,0.00021369,2]
[350069718,1737598267815,-926.57,0.00021369,2]
[350069719,1737598267824,-500.0,0.00021369,2]
[350069720,1737598267834,-4005.95,0.00021369,2]
[350069721,1737598267846,-500.0,0.00021369,2]
[350069722,1737598267856,-934.73,0.00021369,2]
[350069723,1737598267867,-569.4,0.00021369,2]
[350069724,1737598267878,-1366.9,0.00021369,2]
[350069725,1737598267887,-638.91,0.00021369,2]
[350069726,1737598267898,-500.0,0.00021369,2]
[350069727,1737598267909,-500.0,0.00021369,2]
[350069728,1737598267920,-701.57,0.00021369,2]
[350069729,1737598267931,-500.0,0.00021369,2]
[350069730,1737598267940,-780.6,0.00021369,2]
[350069731,1737598267952,-1079.5,0.00021369,2]
[350069732,1737598267967,-500.0,0.00021369,2]
[350069733,1737598267978,-500.0,0.00021369,2]
[350069734,1737598267989,-2807.93,0.00021369,2]
[350069735,1737598267998,-1009.59,0.00021369,2]
[350069736,1737598268007,-501.49,0.00021369,2]
[350069737,1737598268017,-1169.11,0.00021369,2]
[350069738,1737598268026,-298.36992652,0.00021369,2]
[350069739,1737598268035,-636.54,0.00021369,2]
[350069740,1737598268044,-958.43,0.00021369,2]
[350069741,1737598268053,-544.56,0.00021369,2]
[350069742,1737598268062,-580.23,0.00021369,2]
[350069743,1737598268071,-1894.86,0.00021369,2]
[350069744,1737598268080,-1614.96,0.00021369,2]
[350069745,1737598268089,-500.0,0.00021369,2]
[350069746,1737598268099,-1825.68,0.00021369,2]
[350069747,1737598268108,-500.0,0.00021369,2]
[350069748,1737598268117,-1665.25,0.00021369,2]
[350069749,1737598268230,-1562.79,0.00021369,2]
[350069750,1737598268240,-521.94,0.00021369,2]
[350069751,1737598268249,-781.49,0.00021369,2]
[350069752,1737598268259,-3410.84,0.00021369,2]
[350069753,1737598268270,-715.04,0.00021369,2]
[350069754,1737598268279,-828.54,0.00021369,2]
[350069755,1737598268288,-1023.25,0.00021369,2]
[350069756,1737598268297,-1545.44,0.00021369,2]
[350069757,1737598268307,-999.21,0.00021369,2]
[350069758,1737598268316,-595.45,0.00021369,2]
[350069759,1737598268325,-500.0,0.00021369,2]
[350069760,1737598268335,-941.03,0.00021369,2]
[350069761,1737598268344,-1436.85,0.00021369,2]
[350069762,1737598268353,-1139.26,0.00021369,2]
[350069763,1737598268363,-1885.46,0.00021369,2]
[350069764,1737598268373,-500.0,0.00021369,2]
[350069765,1737598268382,-500.0,0.00021369,2]
[350069766,1737598268391,-508.75,0.00021369,2]
[350069767,1737598268400,-697.25,0.00021369,2]
[350069768,1737598268410,-1204.01,0.00021369,2]
[350069769,1737598268420,-1170.11,0.00021369,2]
[350069770,1737598268430,-2156.54,0.00021369,2]
[350069771,1737598268439,-954.95,0.00021369,2]
[350069772,1737598268448,-500.0,0.00021369,2]
[350069773,1737598268458,-2857.56,0.00021369,2]
[350069774,1737598268468,-1781.26,0.00021369,2]
[350069775,1737598268478,-613.33,0.00021369,2]
[350069776,1737598268487,-500.0,0.00021369,2]
[350069777,1737598268496,-832.7,0.00021369,2]
[350069778,1737598268506,-1000.0,0.00021369,2]
[350069779,1737598268517,-709.55,0.00021369,2]
[350069780,1737598268527,-534.8,0.00021369,2]
[350069781,1737598268536,-902.21,0.00021369,2]
[350069782,1737598268547,-1002.47,0.00021369,2]
[350069783,1737598268557,-857.13,0.00021369,2]
[350069784,1737598268570,-500.0,0.00021369,2]
[350069785,1737598268579,-825.39,0.00021369,2]
[350069786,1737598268589,-1658.23,0.00021369,2]
[350069787,1737598268600,-1634.67,0.00021369,2]
[350069788,1737598268610,-553.31,0.00021369,2]
[350069789,1737598268621,-1490.03,0.00021369,2]
[350069790,1737598268630,-2233.11,0.00021369,2]
[350069791,1737598268640,-1027.05,0.00021369,2]
[350069792,1737598268650,-770.23,0.00021369,2]
[350069793,1737598268659,-520.02,0.00021369,2]
[350069794,1737598268668,-500.0,0.00021369,2]
[350069795,1737598268678,-1698.92,0.00021369,2]
[350069796,1737598268687,-683.74,0.00021369,2]
[350069797,1737598268696,-1618.77,0.00021369,2]
[350069798,1737598268705,-1198.6,0.00021369,2]
[350069799,1737598268715,-500.0,0.00021369,2]
[350069800,1737598268725,-661.89,0.00021369,2]
[350069801,1737598268734,-500.0,0.00021369,2]
[350069802,1737598268743,-2270.26,0.00021369,2]
[350069803,1737598268754,-638.8,0.00021369,2]
[350069804,1737598268764,-500.0,0.00021369,2]
[350069805,1737598268774,-500.0,0.00021369,2]
[350069806,1737598268784,-500.0,0.00021369,2]
[350069807,1737598268793,-279.88824265,0.00021369,2]
[350069808,1737598268803,-500.0,0.00021369,2]
[350069809,1737598268813,-500.0,0.00021369,2]
[350069810,1737598268823,-1043.82,0.00021369,2]
[350069811,1737598268832,-905.62,0.00021369,2]
[350069812,1737598268841,-500.0,0.00021369,2]
[350069813,1737598268851,-500.0,0.00021369,2]
[350069814,1737598268861,-624.19,0.00021369,2]
[350069815,1737598268871,-500.0,0.00021369,2]
[350069816,1737598268881,-795.77,0.00021369,2]
[350069817,1737598268890,-500.0,0.00021369,2]
[350069818,1737598268900,-652.67,0.00021369,2]
[350069819,1737598268911,-1966.42,0.00021369,2]
[350069820,1737598268921,-1474.72,0.00021369,2]
[350069821,1737598268930,-500.0,0.00021369,2]
[350069822,1737598268940,-839.45,0.00021369,2]
[350069823,1737598268949,-1114.82,0.00021369,2]
[350069824,1737598268959,-695.67,0.00021369,2]
[350069825,1737598268970,-780.12,0.00021369,2]
[350069826,1737598268979,-1160.06,0.00021369,2]
[350069827,1737598268990,-500.0,0.00021369,2]
[350069828,1737598269000,-500.0,0.00021369,2]
[350069829,1737598269012,-1941.87,0.00021369,2]
[350069830,1737598269023,-576.39802915,0.00021369,2]
[350069831,1737598269033,-629.0,0.00021369,2]
[350069832,1737598269043,-1250.23134896,0.00021369,2]
[350069833,1737598269053,-1951.20416786,0.00021383,2]
[350069834,1737598269064,-700.0,0.000214,7]
[350069835,1737598269075,-500.0,0.00021411,7]
[350069836,1737598269086,-500.0,0.00021411,7]
[350069837,1737598269095,-500.0,0.00021411,7]
[350069838,1737598269105,-1951.20416786,0.00021486,2]
[350069839,1737598269116,-700.0,0.000215,7]
[350069840,1737598269126,-340.00785583,0.00021507,2]
[350069841,1737598269137,-1803.0,0.0002156,2]
[350069842,1737598269148,-421.29786233,0.00021573,2]
[350069843,1737598269158,-262.437,0.00021576,2]
[350069844,1737598269171,-3928.211,0.00021576,2]
[350069845,1737598269188,-1176.0,0.00021576,2]
[350069846,1737598269201,-4001.85684245,0.00021586,2]
[350069847,1737598269211,-1951.20416786,0.0002159,2]
[350069848,1737598269227,-1106.0,0.00021596,2]
[350069849,1737598269238,-700.0,0.000216,7]
[350069850,1737598269248,-25404.0,0.000216,2]
[350069851,1737598269258,-464.187533,0.00021643,2]
[350069852,1737598269270,-500.0,0.00021643,2]
[350069853,1737598269280,-500.0,0.00021643,2]
[350069854,1737598269291,-500.0,0.00021643,2]
[350069855,1737598269301,-532.52,0.00021643,2]
[350069856,1737598269311,-500.0,0.00021643,2]
[350069857,1737598269321,-500.0,0.00021643,2]
[350069858,1737598269331,-1208.62,0.00021643,2]
[350069859,1737598269340,-325.19283943,0.00021643,2]
[350069860,1737598269351,-500.0,0.00021643,2]
[350069861,1737598269362,-500.0,0.00021643,2]
[350069862,1737598269371,-500.0,0.00021643,2]
[350069863,1737598269382,-500.0,0.00021643,2]
[350069864,1737598269392,-500.0,0.00021643,2]
[350069865,1737598269402,-342.25162758,0.00021643,2]
[350069866,1737598269412,-500.0,0.00021643,2]
[350069867,1737598269423,-591.65,0.00021643,2]
[350069868,1737598269436,-598.59,0.00021643,2]
[350069869,1737598269447,-500.0,0.00021643,2]
[350069870,1737598269457,-511.06,0.00021643,2]
[350069871,1737598269468,-626.68,0.00021643,2]
[350069872,1737598269479,-569.54,0.00021643,2]
[350069873,1737598269490,-500.0,0.00021643,2]
[350069874,1737598269501,-500.0,0.00021643,2]
[350069875,1737598269512,-500.0,0.00021643,2]
[350069876,1737598269527,-669.91,0.00021643,2]
[350069877,1737598269539,-590.81,0.00021643,2]
[350069878,1737598269550,-500.0,0.00021643,2]
[350069879,1737598269573,-539.23,0.00021643,2]
[350069880,1737598269585,-500.0,0.00021643,2]
[350069881,1737598269596,-609.49,0.00021643,2]
[350069882,1737598269607,-652.2,0.00021643,2]
[350069883,1737598269619,-500.0,0.00021643,2]
[350069884,1737598269630,-500.0,0.00021643,2]
[350069885,1737598269642,-500.0,0.00021643,2]
[350069886,1737598269653,-520.26813454,0.00021643,2]
[350069887,1737598269663,-560.55,0.00021643,2]
[350069888,1737598269674,-500.0,0.00021643,2]
[350069889,1737598269684,-500.0,0.00021643,2]
[350069890,1737598269695,-500.0,0.00021643,2]
[350069891,1737598269706,-301.96485774,0.00021643,2]
[350069892,1737598269717,-585.91,0.00021643,2]
[350069893,1737598269728,-500.0,0.00021643,2]
[350069894,1737598269740,-500.0,0.00021643,2]
[350069895,1737598269752,-500.0,0.00021643,2]
[350069896,1737598269765,-760.92,0.00021643,2]
[350069897,1737598269776,-500.0,0.00021643,2]
[350069898,1737598269787,-500.0,0.00021643,2]
[350069899,1737598269798,-709.5,0.00021643,2]
[350069900,1737598269809,-500.0,0.00021643,2]
[350069901,1737598269819,-783.44,0.00021643,2]
[350069902,1737598269830,-734.61,0.00021643,2]
[350069903,1737598269841,-983.91,0.00021643,2]
[350069904,1737598269852,-1021.08,0.00021643,2]
[350069905,1737598269863,-595.13,0.00021643,2]
[350069906,1737598269873,-1861.17,0.00021643,2]
[350069907,1737598269884,-2273.74,0.00021643,2]
[350069908,1737598269894,-500.0,0.00021643,2]
[350069909,1737598269906,-926.57,0.00021643,2]
[350069910,1737598269920,-500.0,0.00021643,2]
[350069911,1737598269931,-4005.95,0.00021643,2]
[350069912,1737598269943,-500.0,0.00021643,2]
[350069913,1737598269956,-934.73,0.00021643,2]
[350069914,1737598269967,-1366.9,0.00021643,2]
[350069915,1737598269978,-638.91,0.00021643,2]
[350069916,1737598269989,-500.0,0.00021643,2]
[350069917,1737598270000,-500.0,0.00021643,2]
[350069918,1737598270015,-701.57,0.00021643,2]
[350069919,1737598270027,-500.0,0.00021643,2]
[350069920,1737598270039,-780.6,0.00021643,2]
[350069921,1737598270050,-1079.5,0.00021643,2]
[350069922,1737598270063,-500.0,0.00021643,2]
[350069923,1737598270074,-545.36951708,0.00021643,2]
[350069924,1737598270085,-2807.93,0.00021643,2]
[350069925,1737598270096,-1009.59,0.00021643,2]
[350069926,1737598270107,-501.49,0.00021643,2]
[350069927,1737598270117,-1169.11,0.00021643,2]
[350069928,1737598270128,-636.54,0.00021643,2]
[350069929,1737598270138,-958.43,0.00021643,2]
[350069930,1737598270149,-544.56,0.00021643,2]
[350069931,1737598270165,-580.23,0.00021643,2]
[350069932,1737598270175,-1894.86,0.00021643,2]
[350069933,1737598270186,-1614.96,0.00021643,2]
[350069934,1737598270196,-500.0,0.00021643,2]
[350069935,1737598270206,-1825.68,0.00021643,2]
[350069936,1737598270217,-500.0,0.00021643,2]
[350069937,1737598270227,-1665.25,0.00021643,2]
[350069938,1737598270238,-1562.79,0.00021643,2]
[350069939,1737598270248,-781.49,0.00021643,2]
[350069940,1737598270258,-521.94,0.00021643,2]
[350069941,1737598270271,-3410.84,0.00021643,2]
[350069942,1737598270384,-715.04,0.00021643,2]
[350069943,1737598270406,-494.60134646,0.00021643,2]
[350069944,1737598270604,-333.93865354,0.00021643,2]
[350069945,1737598270616,-1023.25,0.00021643,2]
[350069946,1737598270627,-1545.44,0.00021643,2]
[350069947,1737598270638,-999.21,0.00021643,2]
[350069948,1737598270650,-595.45,0.00021643,2]
[350069949,1737598270662,-500.0,0.00021643,2]
[350069950,1737598270673,-941.03,0.00021643,2]
[350069951,1737598270686,-1436.85,0.00021643,2]
[350069952,1737598270699,-1139.26,0.00021643,2]
[350069953,1737598270710,-1885.46,0.00021643,2]
[350069954,1737598270721,-500.0,0.00021643,2]
[350069955,1737598270732,-508.75,0.00021643,2]
[350069956,1737598270743,-500.0,0.00021643,2]
[350069957,1737598270754,-697.25,0.00021643,2]
[350069958,1737598270766,-1204.01,0.00021643,2]
[350069959,1737598270777,-1170.11,0.00021643,2]
[350069960,1737598270789,-2156.54,0.00021643,2]
[350069961,1737598270801,-954.95,0.00021643,2]
[350069962,1737598270811,-500.0,0.00021643,2]
[350069963,1737598270822,-2857.56,0.00021643,2]
[350069964,1737598270833,-1781.26,0.00021643,2]
[350069965,1737598270843,-613.33,0.00021643,2]
[350069966,1737598270854,-500.0,0.00021643,2]
[350069967,1737598270865,-832.7,0.00021643,2]
[350069968,1737598270876,-1000.0,0.00021643,2]
[350069969,1737598270886,-709.55,0.00021643,2]
[350069970,1737598270897,-534.8,0.00021643,2]
[350069971,1737598270907,-902.21,0.00021643,2]
[350069972,1737598270918,-1002.47,0.00021643,2]
[350069973,1737598270928,-857.13,0.00021643,2]
[350069974,1737598270939,-500.0,0.00021643,2]
[350069975,1737598270950,-825.39,0.00021643,2]
[350069976,1737598270961,-1658.23,0.00021643,2]
[350069977,1737598270972,-1634.67,0.00021643,2]
[350069978,1737598270984,-553.31,0.00021643,2]
[350069979,1737598270997,-1490.03,0.00021643,2]
[350069980,1737598271007,-2233.11,0.00021643,2]
[350069981,1737598271021,-1027.05,0.00021643,2]
[350069982,1737598271031,-770.23,0.00021643,2]
[350069983,1737598271042,-520.02,0.00021643,2]
[350069984,1737598271052,-500.0,0.00021643,2]
[350069985,1737598271062,-1698.92,0.00021643,2]
[350069986,1737598271072,-683.74,0.00021643,2]
[350069987,1737598271083,-1618.77,0.00021643,2]
[350069988,1737598271093,-500.0,0.00021643,2]
[350069989,1737598271104,-1198.6,0.00021643,2]
[350069990,1737598271114,-661.89,0.00021643,2]
[350069991,1737598271124,-500.0,0.00021643,2]
[350069992,1737598271135,-2270.26,0.00021643,2]
[350069993,1737598271147,-638.8,0.00021643,2]
[350069994,1737598271160,-500.0,0.00021643,2]
[350069995,1737598271179,-500.0,0.00021643,2]
[350069996,1737598271195,-547.09494276,0.00021643,2]
[350069997,1737598271215,-500.0,0.00021643,2]
[350069998,1737598271235,-500.0,0.00021643,2]
[350069999,1737598271253,-905.62,0.00021643,2]
[350070000,1737598271273,-1043.82,0.00021643,2]
[350070001,1737598271291,-500.0,0.00021643,2]
[350070002,1737598271311,-500.0,0.00021643,2]
[350070003,1737598271331,-624.19,0.00021643,2]
[350070004,1737598271351,-500.0,0.00021643,2]
[350070005,1737598271370,-795.77,0.00021643,2]
[350070006,1737598271388,-500.0,0.00021643,2]
[350070007,1737598271408,-652.67,0.00021643,2]
[350070008,1737598271424,-1966.42,0.00021643,2]
[350070009,1737598271440,-1474.72,0.00021643,2]
[350070010,1737598271459,-500.0,0.00021643,2]
[350070011,1737598271471,-839.45,0.00021643,2]
[350070012,1737598271486,-1114.82,0.00021643,2]
[350070013,1737598271503,-695.67,0.00021643,2]
[350070014,1737598271520,-780.12,0.00021643,2]
[350070015,1737598271535,-1160.06,0.00021643,2]
[350070016,1737598271550,-500.0,0.00021643,2]
[350070017,1737598271565,-500.0,0.00021643,2]
[350070018,1737598271579,-1941.87,0.00021643,2]
[350070019,1737598271594,-629.0,0.00021643,2]
[350070020,1737598271608,-602.64919961,0.0002167,2]
[350070021,1737598271622,-239.85,0.00021672,30]
[350070022,1737598271637,-500.0,0.00021685,7]
[350070023,1737598271650,-500.0,0.00021685,7]
[350070024,1737598271663,-1951.20416786,0.00021693,3]
[350070025,1737598271677,-700.0,0.000217,7]
[350070026,1737598271691,-2000.0,0.000217,2]
[350070027,1737598271706,-1574.0,0.000217,2]
[350070028,1737598271720,-340.00785583,0.00021704,2]
[350070029,1737598271735,-2000.0,0.0002171,2]
[350070030,1737598271749,-3952.835966,0.0002172,2]
[350070031,1737598271764,-150.0,0.00021739,2]
[350070032,1737598271778,-421.29786233,0.00021747,2]
[350070033,1737598271792,-150.0,0.00021752,2]
[350070034,1737598271806,-9999.99,0.00021757,2]
[350070035,1737598271819,-9999.99,0.00021757,2]
[350070036,1737598271832,-3483.44,0.00021757,2]
[350070037,1737598271846,-637.37,0.00021757,2]
[350070038,1737598271860,-1112.98,0.00021757,2]
[350070039,1737598271872,-150.99,0.00021757,2]
[350070040,1737598271882,-292.39,0.00021757,2]
[350070041,1737598271892,-4088.58,0.00021757,5]
[350070042,1737598271902,-55279.81,0.00021757,2]
[350070043,1737598271913,-150.99,0.00021757,2]
[350070044,1737598271924,-466.08,0.00021757,2]
[350070045,1737598271934,-9987.18,0.00021757,2]
[350070046,1737598271943,-999.99,0.00021757,2]
[350070047,1737598271953,-328.43,0.00021757,2]
[350070048,1737598271963,-9999.99,0.00021757,2]
[350070049,1737598271972,-9999.99,0.00021757,2]
[350070050,1737598271982,-299.99,0.00021757,7]
[350070051,1737598271991,-1000.0,0.00021759,2]
[350070052,1737598272000,-150.0,0.00021761,2]
[350070053,1737598272013,-5512.21936872,0.0002178,2]
[350070054,1737598272023,-1803.0,0.0002178,2]
[350070055,1737598272033,-150.0,0.00021782,2]
[350070056,1737598272043,-150.0,0.00021783,2]
[350070057,1737598272052,-150.0,0.00021785,2]
[350070058,1737598272062,-152.81142041,0.00021789,2]
[350070059,1737598272072,-150.0,0.00021793,2]
[350070060,1737598272082,-150.0,0.00021795,2]
[350070061,1737598272092,-1951.20416786,0.00021797,3]
[350070062,1737598272102,-1376.0,0.000218,7]
[350070063,1737598272112,-1000.0,0.000218,2]
[350070064,1737598272121,-150.0,0.00021801,2]
[350070065,1737598272131,-150.0,0.00021806,2]
[350070066,1737598272140,-150.0,0.00021807,2]
[350070067,1737598272150,-150.0,0.00021814,2]
[350070068,1737598272160,-150.0,0.00021815,2]
[350070069,1737598272169,-150.0,0.00021816,2]
[350070070,1737598272179,-150.0,0.00021819,2]